[Event "Championnat de France Universitaire Nan"]
[Site "Nancy, France"]
[Date "2020.02.08"]
[Round "6.8"]
[White "Geronimi, Pierre-Francois"]
[Black "Fischer Schilling, Ian"]
[Result "1-0"]
[WhiteElo "2070"]
[BlackElo "1810"]
[PlyCount "92"]
[EventDate "2020.??.??"]
[TimeControl "15+5"]
[WhiteClock "0:00:18"]
[BlackClock "0:03:45"]

1. e4 {[%emt 0:00:02]} c5 {[%emt 0:00:01]} 2. Nf3 {[%emt 0:00:01]} d6 {[%emt 0:
00:01]} 3. d4 {[%emt 0:00:00]} cxd4 {[%emt 0:00:02]} 4. Nxd4 {[%emt 0:00:00]}
Nf6 {[%emt 0:00:01]} 5. Bd3 {[%emt 0:00:01]} Nc6 {[%emt 0:00:07]} 6. Nxc6 {
[%emt 0:00:01]} bxc6 {[%emt 0:00:01]} 7. O-O {[%emt 0:00:02]} g6 {[%emt 0:00:
07]} 8. c3 {[%emt 0:00:03]} Bg7 {[%emt 0:00:03]} 9. a4 {[%emt 0:00:09]} a5 {
[%emt 0:00:05]} 10. Ra3 {[%emt 0:00:05]} O-O {[%emt 0:00:12]} 11. Qe2 {[%emt 0:
00:05]} Be6 {[%emt 0:00:28]} 12. b4 {[%emt 0:00:20]} d5 {[%emt 0:00:19]} 13.
Nd2 {[%emt 0:00:22]} dxe4 {[%emt 0:00:09]} 14. Nxe4 {[%emt 0:00:12]} Nxe4 {
[%emt 0:00:52]} 15. Bxe4 {[%emt 0:00:03]} Bd5 {[%emt 0:00:16]} 16. b5 {[%emt 0:
00:51]} Qd6 {[%emt 0:00:18]} 17. c4 {[%emt 0:01:19]} Bxe4 {[%emt 0:00:16]} 18.
Qxe4 {[%emt 0:00:02]} Rfc8 {[%emt 0:00:09]} 19. Rb3 {[%emt 0:00:53]} cxb5 {
[%emt 0:00:13]} 20. cxb5 {[%emt 0:00:11]} Ra7 {[%emt 0:00:26]} 21. Be3 {[%emt
0:00:04]} Rd7 {[%emt 0:00:18]} 22. b6 {[%emt 0:00:10]} Rb8 {[%emt 0:00:30]} 23.
g3 {[%emt 0:00:14]} Bd4 {[%emt 0:00:09]} 24. Rd1 {[%emt 0:01:01]} e5 {[%emt 0:
00:02]} 25. b7 {[%emt 0:03:38]} Qc7 {[%emt 0:02:08]} 26. Rc1 {[%emt 0:01:40]}
Qd6 {[%emt 0:01:14]} 27. Rc6 {[%emt 0:01:15]} Qf8 {[%emt 0:00:50]} 28. Ra6 {
[%emt 0:02:07]} Bxe3 {[%emt 0:00:33]} 29. fxe3 {[%emt 0:02:03]} Qc5 {[%emt 0:
01:03]} 30. Rc6 {[%emt 0:00:19]} Qe7 {[%emt 0:00:53]} 31. Rc8+ {[%emt 0:00:06]}
Rd8 {[%emt 0:00:00]} 32. Rxd8+ {[%emt 0:00:10]} Qxd8 {[%emt 0:00:01]} 33. Qxe5
{[%emt 0:00:08]} h5 {[%emt 0:00:27]} 34. Rb2 {[%emt 0:00:07]} Kf8 {[%emt 0:00:
15]} 35. Kf2 {[%emt 0:00:05]} Qe8 {[%emt 0:00:09]} 36. Qd6+ {[%emt 0:00:02]}
Kg7 {[%emt 0:00:11]} 37. Qd4+ {[%emt 0:00:03]} Kh7 {[%emt 0:00:04]} 38. Rb5 {
[%emt 0:00:07]} Qc6 {[%emt 0:00:14]} 39. Qb6 {[%emt 0:00:14]} Qc2+ {[%emt 0:00:
13]} 40. Kf3 {[%emt 0:00:02]} Qxh2 {[%emt 0:00:06]} 41. Qc7 {[%emt 0:00:06]}
Qh1+ {[%emt 0:00:06]} 42. Ke2 {[%emt 0:00:01]} Qg2+ {[%emt 0:00:16]} 43. Kd3 {
[%emt 0:00:01]} Qf1+ {[%emt 0:00:02]} 44. Kd4 {[%emt 0:00:09]} Qd1+ {[%emt 0:
00:12]} 45. Kc5 {[%emt 0:00:02]} Qc2+ {[%emt 0:00:57]} 46. Kb6 {[%emt 0:00:05]}
Re8 {[%emt 0:00:25]} 1-0

[Event "Championnat de France Universitaire Nan"]
[Site "Nancy, France"]
[Date "2020.02.09"]
[Round "7.2"]
[White "Bedini, Lucas"]
[Black "Msellek, Ilyass"]
[Result "0-1"]
[WhiteElo "1932"]
[BlackElo "2261"]
[PlyCount "98"]
[EventDate "2020.??.??"]
[TimeControl "15+5"]
[WhiteClock "0:00:47"]
[BlackClock "0:00:28"]

1. f4 {[%emt 0:00:02]} d6 {[%emt 0:03:49]} 2. b3 {[%emt 0:01:01]} e5 {[%emt 0:
00:20]} 3. fxe5 {[%emt 0:00:10]} Nc6 {[%emt 0:00:34]} 4. Nf3 {[%emt 0:00:50]}
Nxe5 {[%emt 0:00:42]} 5. e4 {[%emt 0:00:40]} Bg4 {[%emt 0:00:54]} 6. Be2 {
[%emt 0:00:07]} Bxf3 {[%emt 0:00:02]} 7. Bxf3 {[%emt 0:00:03]} Qh4+ {[%emt 0:
00:00]} 8. g3 {[%emt 0:00:40]} Qf6 {[%emt 0:02:07]} 9. O-O {[%emt 0:00:13]}
Nxf3+ {[%emt 0:01:47]} 10. Qxf3 {[%emt 0:00:02]} Be7 {[%emt 0:00:30]} 11. Nc3 {
[%emt 0:01:32]} c6 {[%emt 0:00:56]} 12. Bb2 {[%emt 0:01:53]} h5 {[%emt 0:00:01]
} 13. Rae1 {[%emt 0:00:21]} h4 {[%emt 0:02:06]} 14. Nd1 {[%emt 0:03:14]} Qg6 {
[%emt 0:00:52]} 15. Ne3 {[%emt 0:01:14]} hxg3 {[%emt 0:00:08]} 16. Qxg3 {[%emt
0:00:09]} Bh4 {[%emt 0:01:18]} 17. Qxg6 fxg6 {[%emt 0:00:00]} 18. Re2 {[%emt 0:
00:00]} Rh7 {[%emt 0:00:18]} 19. Rg2 {[%emt 0:00:35]} Ne7 {[%emt 0:00:01]} 20.
Ba3 {[%emt 0:00:33]} Kd7 {[%emt 0:00:01]} 21. Nc4 {[%emt 0:00:03]} c5 {[%emt 0:
00:10]} 22. Bb2 {[%emt 0:00:00]} b5 {[%emt 0:00:03]} 23. Ne3 {[%emt 0:00:01]}
Ke6 {[%emt 0:00:00]} 24. Re2 {[%emt 0:00:31]} Bf6 {[%emt 0:00:03]} 25. Bxf6 {
[%emt 0:00:31]} gxf6 {[%emt 0:00:01]} 26. Ng4 {[%emt 0:00:04]} Rf8 27. Ref2 {
[%emt 0:00:25]} f5 {[%emt 0:00:06]} 28. exf5+ {[%emt 0:00:03]} gxf5 {[%emt 0:
00:02]} 29. Ne3 {[%emt 0:00:04]} Rh5 {[%emt 0:00:05]} 30. Ng2 {[%emt 0:00:10]}
Kd7 {[%emt 0:00:07]} 31. Nf4 {[%emt 0:00:11]} Rh6 {[%emt 0:00:01]} 32. Rg2 {
[%emt 0:00:02]} Rfh8 {[%emt 0:00:08]} 33. Rg7 {[%emt 0:00:11]} R8h7 {[%emt 0:
00:20]} 34. Rxh7 {[%emt 0:00:18]} Rxh7 {[%emt 0:00:01]} 35. Kg2 {[%emt 0:00:11]
} Nc6 {[%emt 0:00:03]} 36. Rh1 {[%emt 0:00:40]} Rh4 {[%emt 0:00:08]} 37. Ne2 {
[%emt 0:00:15]} Ne5 {[%emt 0:00:04]} 38. Rf1 {[%emt 0:00:03]} Ke6 {[%emt 0:00:
01]} 39. Nf4+ {[%emt 0:00:01]} Kf6 {[%emt 0:00:03]} 40. Nd5+ {[%emt 0:00:01]}
Kg5 {[%emt 0:00:03]} 41. Ne7 {[%emt 0:00:16]} f4 {[%emt 0:00:03]} 42. Nc8 {
[%emt 0:00:01]} f3+ {[%emt 0:00:05]} 43. Kg1 {[%emt 0:00:06]} Rg4+ {[%emt 0:00:
15]} 44. Kh1 {[%emt 0:00:00]} Rg2 {[%emt 0:00:00]} 45. Nxd6 {[%emt 0:00:02]}
Kf4 {[%emt 0:00:05]} 46. Rg1 {[%emt 0:00:21]} Rxd2 {[%emt 0:00:11]} 47. Nxb5 {
[%emt 0:00:02]} Ng4 {[%emt 0:00:03]} 48. Rxg4+ {[%emt 0:00:11]} Kxg4 {[%emt 0:
00:02]} 49. Kg1 {[%emt 0:00:09]} Rxc2 {[%emt 0:00:02]} 0-1

[Event "Championnat de France Universitaire Nan"]
[Site "Nancy, France"]
[Date "2020.02.09"]
[Round "7.3"]
[White "Gatineau, Yovann"]
[Black "Buttard, Axel"]
[Result "1-0"]
[WhiteElo "2381"]
[BlackElo "1905"]
[PlyCount "71"]
[EventDate "2020.??.??"]
[TimeControl "15+5"]
[WhiteClock "0:00:31"]
[BlackClock "0:00:17"]

1. e4 {[%emt 0:18:44]} e5 {[%emt 0:00:07]} 2. Nf3 {[%emt 0:00:00]} Nc6 {[%emt
0:00:02]} 3. Bb5 {[%emt 0:00:01]} Bc5 {[%emt 0:00:02]} 4. O-O {[%emt 0:00:07]}
Nd4 {[%emt 0:00:02]} 5. Bc4 {[%emt 0:00:16]} Nxf3+ 6. Qxf3 {[%emt 0:00:00]} Nf6
{[%emt 0:00:17]} 7. d3 {[%emt 0:00:18]} h6 {[%emt 0:01:39]} 8. Qg3 {[%emt 0:01:
03]} Qe7 {[%emt 0:01:07]} 9. c3 {[%emt 0:01:21]} d6 {[%emt 0:01:51]} 10. b4 {
[%emt 0:00:07]} Bb6 {[%emt 0:00:10]} 11. Be3 {[%emt 0:00:03]} Be6 {[%emt 0:02:
02]} 12. Nd2 {[%emt 0:00:21]} c6 {[%emt 0:02:08]} 13. a4 {[%emt 0:01:49]} Bc7 {
[%emt 0:00:36]} 14. Ba2 {[%emt 0:04:37]} Ng4 {[%emt 0:02:00]} 15. h3 {[%emt 0:
02:14]} Nxe3 {[%emt 0:00:29]} 16. fxe3 {[%emt 0:00:01]} O-O {[%emt 0:00:43]}
17. Nf3 {[%emt 0:00:58]} f5 {[%emt 0:01:08]} 18. Nh4 {[%emt 0:01:49]} Bxa2 {
[%emt 0:00:33]} 19. Ng6 {[%emt 0:00:48]} Qe6 {[%emt 0:00:21]} 20. exf5 {[%emt
0:00:07]} Qf6 {[%emt 0:00:03]} 21. Rxa2 {[%emt 0:00:04]} d5 {[%emt 0:00:05]}
22. Nxf8 {[%emt 0:00:03]} Rxf8 23. e4 {[%emt 0:00:05]} Qf7 {[%emt 0:00:11]} 24.
Qg6 {[%emt 0:00:05]} Qe7 {[%emt 0:00:12]} 25. Rd2 {[%emt 0:00:16]} Rf6 {[%emt
0:00:20]} 26. Qg3 {[%emt 0:00:01]} Bb6+ {[%emt 0:00:06]} 27. Kh1 {[%emt 0:00:
06]} d4 {[%emt 0:00:04]} 28. cxd4 {[%emt 0:00:04]} Bxd4 {[%emt 0:00:02]} 29. b5
{[%emt 0:00:16]} Qb4 {[%emt 0:00:04]} 30. Rdd1 {[%emt 0:00:19]} cxb5 {[%emt 0:
00:04]} 31. axb5 {[%emt 0:00:01]} Qxb5 {[%emt 0:00:02]} 32. Rb1 {[%emt 0:00:01]
} Qc6 {[%emt 0:00:04]} 33. Rfc1 {[%emt 0:00:01]} Qd7 {[%emt 0:00:03]} 34. Qe1 {
[%emt 0:00:01]} Ra6 {[%emt 0:00:10]} 35. Qb4 {[%emt 0:00:06]} b6 {[%emt 0:00:
09]} 36. Qc4+ {[%emt 0:00:01]} 1-0

[Event "Championnat de France Universitaire Nan"]
[Site "Nancy, France"]
[Date "2020.02.09"]
[Round "7.4"]
[White "Pak, Alexander"]
[Black "Geronimi, Pierre-Francois"]
[Result "0-1"]
[WhiteElo "2183"]
[BlackElo "2070"]
[PlyCount "138"]
[EventDate "2020.??.??"]
[TimeControl "15+5"]
[WhiteClock "0:00:10"]
[BlackClock "0:00:27"]

1. e4 {[%emt 0:00:00]} g6 {[%emt 0:00:02]} 2. g3 {[%emt 0:00:04]} Bg7 {[%emt 0:
00:01]} 3. Bg2 {[%emt 0:00:02]} c5 {[%emt 0:00:08]} 4. Nc3 {[%emt 0:00:06]} Nc6
{[%emt 0:00:10]} 5. Nge2 {[%emt 0:00:05]} e6 {[%emt 0:00:14]} 6. d3 {[%emt 0:
00:06]} Nge7 {[%emt 0:00:07]} 7. Be3 {[%emt 0:00:03]} d6 {[%emt 0:00:03]} 8.
Qd2 {[%emt 0:00:10]} h5 {[%emt 0:00:30]} 9. O-O-O {[%emt 0:01:20]} Nd4 {[%emt
0:01:19]} 10. f4 {[%emt 0:00:17]} Qa5 {[%emt 0:01:37]} 11. Kb1 {[%emt 0:01:15]}
Nec6 {[%emt 0:02:02]} 12. a3 {[%emt 0:03:12]} Rb8 {[%emt 0:00:10]} 13. Bf2 {
[%emt 0:00:53]} b5 {[%emt 0:01:04]} 14. Nxd4 {[%emt 0:00:31]} Nxd4 {[%emt 0:01:
02]} 15. e5 {[%emt 0:00:55]} dxe5 {[%emt 0:01:26]} 16. fxe5 {[%emt 0:00:03]}
O-O {[%emt 0:01:44]} 17. Ne4 {[%emt 0:01:00]} Qxd2 {[%emt 0:00:15]} 18. Rxd2 {
[%emt 0:00:01]} Bb7 {[%emt 0:01:12]} 19. Bxd4 {[%emt 0:00:56]} cxd4 {[%emt 0:
00:02]} 20. Re1 {[%emt 0:01:25]} Bxe4 {[%emt 0:01:35]} 21. Rxe4 {[%emt 0:00:07]
} Rfd8 {[%emt 0:00:07]} 22. c3 {[%emt 0:00:58]} Rd5 {[%emt 0:00:35]} 23. Rxd4 {
[%emt 0:00:20]} Rxe5 {[%emt 0:00:14]} 24. Rd7 {[%emt 0:00:06]} a5 {[%emt 0:00:
11]} 25. Rf2 {[%emt 0:00:06]} f5 {[%emt 0:00:31]} 26. d4 {[%emt 0:00:09]} Re1+
{[%emt 0:00:02]} 27. Kc2 {[%emt 0:00:40]} b4 {[%emt 0:00:04]} 28. d5 {[%emt 0:
00:50]} bxa3 {[%emt 0:00:12]} 29. bxa3 {[%emt 0:00:10]} exd5 {[%emt 0:00:19]}
30. Bxd5+ {[%emt 0:00:03]} Kh7 {[%emt 0:00:01]} 31. Bb3 {[%emt 0:00:36]} Rc8 {
[%emt 0:00:17]} 32. Rd3 {[%emt 0:00:12]} Kh6 {[%emt 0:00:06]} 33. h4 {[%emt 0:
00:08]} Rc6 {[%emt 0:00:11]} 34. Rfd2 {[%emt 0:00:07]} Re7 {[%emt 0:00:07]} 35.
Rf3 {[%emt 0:00:15]} Rec7 {[%emt 0:00:01]} 36. Rdd3 {[%emt 0:00:08]} Ra7 {
[%emt 0:00:05]} 37. Bd5 {[%emt 0:00:07]} Rb6 {[%emt 0:00:05]} 38. Rde3 {[%emt
0:00:12]} Rc7 {[%emt 0:00:04]} 39. Re6 {[%emt 0:00:05]} Rxe6 {[%emt 0:00:06]}
40. Bxe6 {[%emt 0:00:01]} Rc5 {[%emt 0:00:05]} 41. Rd3 {[%emt 0:00:04]} Rc6 {
[%emt 0:00:05]} 42. Bf7 {[%emt 0:00:01]} Rc7 {[%emt 0:00:11]} 43. Be6 {[%emt 0:
00:07]} Rc6 {[%emt 0:00:03]} 44. Bf7 {[%emt 0:00:01]} Be5 {[%emt 0:00:07]} 45.
c4 {[%emt 0:00:06]} Kg7 {[%emt 0:00:08]} 46. Bd5 {[%emt 0:00:01]} Rc7 {[%emt 0:
00:03]} 47. Rb3 {[%emt 0:00:02]} Bd4 {[%emt 0:00:06]} 48. Kd3 {[%emt 0:00:10]}
Bf2 {[%emt 0:00:04]} 49. Ke2 {[%emt 0:00:05]} Bd4 {[%emt 0:00:02]} 50. Rb5 {
[%emt 0:00:06]} Bc3 {[%emt 0:00:07]} 51. c5 {[%emt 0:00:19]} Bd4 {[%emt 0:00:
10]} 52. c6 {[%emt 0:00:02]} Bc3 {[%emt 0:00:08]} 53. Bf3 {[%emt 0:00:05]} Kf6
{[%emt 0:00:04]} 54. Kd3 {[%emt 0:00:02]} Be5 {[%emt 0:00:02]} 55. Rxa5 {[%emt
0:00:22]} Bxg3 {[%emt 0:00:01]} 56. Ra8 {[%emt 0:00:06]} Bxh4 {[%emt 0:00:03]}
57. a4 {[%emt 0:00:06]} Bf2 {[%emt 0:00:06]} 58. a5 {[%emt 0:00:01]} h4 {[%emt
0:00:04]} 59. a6 {[%emt 0:00:04]} g5 {[%emt 0:00:04]} 60. Rd8 {[%emt 0:00:05]}
g4 {[%emt 0:00:05]} 61. Bd5 {[%emt 0:00:12]} Ke5 {[%emt 0:00:17]} 62. Kc4 {
[%emt 0:00:02]} Ra7 {[%emt 0:00:06]} 63. Rd7 {[%emt 0:00:03]} Rxa6 {[%emt 0:00:
09]} 64. c7 {[%emt 0:00:04]} Ra1 {[%emt 0:00:02]} 65. Kb5 {[%emt 0:00:11]} Rc1
{[%emt 0:00:03]} 66. Bc6 {[%emt 0:00:05]} Rb1+ {[%emt 0:00:06]} 67. Ka6 {[%emt
0:00:04]} Rb6+ {[%emt 0:00:02]} 68. Ka5 {[%emt 0:00:06]} Rxc6 {[%emt 0:00:01]}
69. Re7+ {[%emt 0:00:04]} Kf4 {[%emt 0:00:01]} 0-1

[Event "Championnat de France Universitaire Nan"]
[Site "Nancy, France"]
[Date "2020.02.09"]
[Round "7.5"]
[White "Cogan, Nicolas"]
[Black "Daeschler, Florian"]
[Result "0-1"]
[WhiteElo "1980"]
[BlackElo "2327"]
[PlyCount "92"]
[EventDate "2020.??.??"]
[TimeControl "15+5"]
[WhiteClock "0:00:14"]
[BlackClock "0:00:49"]

1. d4 {[%emt 0:00:01]} d5 {[%emt 0:00:02]} 2. c4 {[%emt 0:00:01]} e6 {[%emt 0:
00:01]} 3. cxd5 {[%emt 0:00:06]} exd5 {[%emt 0:00:01]} 4. Nc3 {[%emt 0:00:01]}
Nf6 {[%emt 0:00:06]} 5. Bg5 {[%emt 0:00:01]} c6 {[%emt 0:00:01]} 6. e3 {[%emt
0:00:03]} Be7 {[%emt 0:00:01]} 7. Bd3 {[%emt 0:00:01]} Nbd7 {[%emt 0:00:02]} 8.
Qc2 {[%emt 0:00:03]} h6 {[%emt 0:00:01]} 9. Bh4 {[%emt 0:00:00]} Nh5 {[%emt 0:
00:01]} 10. Bxe7 {[%emt 0:00:16]} Qxe7 {[%emt 0:00:01]} 11. Nge2 {[%emt 0:00:
06]} Nb6 {[%emt 0:00:02]} 12. O-O {[%emt 0:00:18]} O-O {[%emt 0:00:04]} 13. h3
{[%emt 0:01:50]} Bd7 {[%emt 0:00:05]} 14. Na4 {[%emt 0:01:11]} Nxa4 {[%emt 0:
00:12]} 15. Qxa4 {[%emt 0:00:02]} Rfe8 {[%emt 0:00:53]} 16. Qb3 {[%emt 0:01:56]
} Be6 {[%emt 0:01:40]} 17. g4 {[%emt 0:02:32]} Nf6 {[%emt 0:00:10]} 18. Qc2 {
[%emt 0:01:12]} Rad8 {[%emt 0:00:19]} 19. Rab1 {[%emt 0:00:55]} Nd7 {[%emt 0:
00:57]} 20. b4 {[%emt 0:00:33]} h5 {[%emt 0:00:44]} 21. f3 {[%emt 0:03:24]} Nf8
{[%emt 0:00:40]} 22. Ng3 {[%emt 0:00:21]} Bc8 {[%emt 0:01:49]} 23. Rfe1 {[%emt
0:00:35]} hxg4 {[%emt 0:00:08]} 24. hxg4 {[%emt 0:00:01]} Rd6 {[%emt 0:00:21]}
25. Kg2 {[%emt 0:00:06]} Rh6 {[%emt 0:00:16]} 26. Re2 {[%emt 0:00:07]} Qg5 {
[%emt 0:01:43]} 27. Rbe1 {[%emt 0:00:31]} Ng6 {[%emt 0:01:24]} 28. Bxg6 {[%emt
0:00:03]} Rxg6 {[%emt 0:00:01]} 29. Qd3 {[%emt 0:00:35]} f5 {[%emt 0:01:35]}
30. Rh1 {[%emt 0:00:01]} fxg4 {[%emt 0:00:51]} 31. f4 {[%emt 0:00:00]} Qf6 {
[%emt 0:00:04]} 32. Ree1 {[%emt 0:00:12]} Kf7 {[%emt 0:01:20]} 33. Rh5 {[%emt
0:00:11]} Rh6 {[%emt 0:00:21]} 34. Reh1 {[%emt 0:00:01]} Reh8 {[%emt 0:00:08]}
35. Rxh6 {[%emt 0:00:35]} Rxh6 {[%emt 0:00:01]} 36. Qf1 {[%emt 0:00:06]} Rh3 {
[%emt 0:00:11]} 37. Rxh3 {[%emt 0:00:01]} gxh3+ {[%emt 0:00:01]} 38. Kh2 {
[%emt 0:00:01]} Qg6 {[%emt 0:00:29]} 39. f5 {[%emt 0:00:05]} Qg4 {[%emt 0:00:
27]} 40. b5 {[%emt 0:00:01]} Bd7 {[%emt 0:00:19]} 41. bxc6 {[%emt 0:00:00]}
bxc6 {[%emt 0:00:01]} 42. Qa6 {[%emt 0:00:20]} Qf3 {[%emt 0:00:17]} 43. Kxh3 {
[%emt 0:00:06]} Bxf5+ {[%emt 0:00:01]} 44. Kh2 {[%emt 0:00:04]} Qf2+ {[%emt 0:
00:01]} 45. Kh1 {[%emt 0:00:04]} Qxg3 {[%emt 0:00:03]} 46. Qxa7+ {[%emt 0:00:
03]} Kg6 {[%emt 0:00:03]} 0-1

[Event "Championnat de France Universitaire Nan"]
[Site "Nancy, France"]
[Date "2020.02.09"]
[Round "7.6"]
[White "Lambert, Thomas"]
[Black "Albaric, Etienne"]
[Result "0-1"]
[WhiteElo "1988"]
[BlackElo "2258"]
[PlyCount "68"]
[EventDate "2020.??.??"]
[TimeControl "15+5"]
[WhiteClock "0:00:23"]
[BlackClock "0:00:22"]

1. e4 {[%emt 0:00:02]} c5 {[%emt 0:01:57]} 2. Nf3 {[%emt 0:00:02]} Nc6 {[%emt
0:00:01]} 3. d4 {[%emt 0:00:02]} cxd4 {[%emt 0:00:01]} 4. Nxd4 {[%emt 0:00:03]}
g6 {[%emt 0:00:01]} 5. c4 {[%emt 0:00:07]} Bg7 {[%emt 0:00:08]} 6. Be3 {[%emt
0:00:02]} Nf6 {[%emt 0:00:02]} 7. Nc3 {[%emt 0:00:02]} d6 {[%emt 0:00:04]} 8.
Be2 {[%emt 0:00:14]} O-O {[%emt 0:00:02]} 9. O-O {[%emt 0:00:02]} Bd7 {[%emt 0:
00:02]} 10. Rc1 {[%emt 0:00:58]} a6 {[%emt 0:00:17]} 11. Qd2 {[%emt 0:00:10]}
Qa5 {[%emt 0:01:19]} 12. Nb3 {[%emt 0:01:30]} Qd8 {[%emt 0:02:39]} 13. Rfd1 {
[%emt 0:03:08]} Rc8 {[%emt 0:01:17]} 14. f3 {[%emt 0:01:05]} Ne5 {[%emt 0:00:
42]} 15. Nd5 {[%emt 0:00:04]} Nxd5 {[%emt 0:00:39]} 16. cxd5 {[%emt 0:00:05]}
f5 {[%emt 0:01:17]} 17. Qb4 {[%emt 0:01:30]} fxe4 {[%emt 0:00:32]} 18. fxe4 {
[%emt 0:00:01]} Bg4 {[%emt 0:02:10]} 19. Bxg4 {[%emt 0:00:15]} Nxg4 {[%emt 0:
00:01]} 20. Bb6 {[%emt 0:00:00]} Qe8 {[%emt 0:00:43]} 21. Rxc8 {[%emt 0:00:15]}
Qxc8 {[%emt 0:00:00]} 22. Rc1 {[%emt 0:00:00]} Qe8 {[%emt 0:00:00]} 23. h3 {
[%emt 0:04:26]} Ne5 {[%emt 0:00:02]} 24. Qd2 {[%emt 0:00:06]} Qa4 {[%emt 0:00:
37]} 25. Bd4 {[%emt 0:01:47]} Qxa2 {[%emt 0:00:46]} 26. Qc3 {[%emt 0:00:28]}
Qa4 {[%emt 0:00:02]} 27. Ra1 {[%emt 0:00:20]} Qb5 {[%emt 0:00:10]} 28. Re1 {
[%emt 0:00:22]} Qd7 {[%emt 0:00:41]} 29. Kh1 {[%emt 0:00:01]} Rc8 {[%emt 0:00:
01]} 30. Qd2 {[%emt 0:00:02]} Rf8 {[%emt 0:00:15]} 31. Bc3 {[%emt 0:00:01]} Qb5
{[%emt 0:00:41]} 32. Nd4 {[%emt 0:00:10]} Qd3 {[%emt 0:00:24]} 33. Qxd3 {[%emt
0:00:02]} Nxd3 {[%emt 0:00:00]} 34. Re3 {[%emt 0:00:01]} Rf1+ {[%emt 0:00:05]}
0-1

[Event "Championnat de France Universitaire Nan"]
[Site "Nancy, France"]
[Date "2020.02.09"]
[Round "7.7"]
[White "Defromont, Benjamin"]
[Black "Aubert, Estee"]
[Result "1-0"]
[WhiteElo "2263"]
[BlackElo "1998"]
[PlyCount "91"]
[EventDate "2020.??.??"]
[TimeControl "15+5"]
[WhiteClock "0:00:24"]
[BlackClock "0:00:10"]

1. e4 {[%emt 0:00:06]} c5 {[%emt 0:00:02]} 2. Nf3 {[%emt 0:00:04]} e6 {[%emt 0:
00:02]} 3. b4 {[%emt 0:00:15]} d5 {[%emt 0:01:46]} 4. e5 {[%emt 0:00:21]} c4 {
[%emt 0:02:10]} 5. c3 {[%emt 0:05:03]} Ne7 {[%emt 0:00:31]} 6. d3 {[%emt 0:00:
16]} cxd3 {[%emt 0:01:01]} 7. Bxd3 {[%emt 0:00:02]} Ng6 {[%emt 0:00:05]} 8. h4
{[%emt 0:00:45]} Qc7 {[%emt 0:00:21]} 9. Qe2 {[%emt 0:02:19]} Nd7 {[%emt 0:00:
25]} 10. Kd1 {[%emt 0:02:41]} Ngxe5 {[%emt 0:00:48]} 11. Bf4 {[%emt 0:01:24]}
Bd6 {[%emt 0:00:03]} 12. Nd4 {[%emt 0:00:16]} a6 {[%emt 0:00:44]} 13. Bc2 {
[%emt 0:00:19]} Nc4 {[%emt 0:01:39]} 14. Bg5 {[%emt 0:01:28]} h6 {[%emt 0:01:
09]} 15. Bc1 {[%emt 0:00:45]} Be5 {[%emt 0:01:13]} 16. Rh3 {[%emt 0:00:09]} Nf6
{[%emt 0:01:18]} 17. Nd2 {[%emt 0:00:06]} Bxd4 {[%emt 0:01:25]} 18. cxd4 {
[%emt 0:00:02]} Nxd2 {[%emt 0:00:22]} 19. Bxd2 {[%emt 0:00:02]} Bd7 {[%emt 0:
00:08]} 20. a4 {[%emt 0:00:10]} Rc8 {[%emt 0:00:09]} 21. Rc3 {[%emt 0:00:05]}
Qb6 {[%emt 0:00:04]} 22. Rc5 {[%emt 0:00:06]} Bc6 {[%emt 0:00:30]} 23. Qe3 {
[%emt 0:00:08]} O-O {[%emt 0:00:49]} 24. f3 {[%emt 0:00:04]} Nd7 {[%emt 0:00:
06]} 25. Rc3 {[%emt 0:00:01]} Qd8 {[%emt 0:00:08]} 26. Qd3 {[%emt 0:00:04]} f5
{[%emt 0:00:10]} 27. b5 {[%emt 0:00:04]} axb5 {[%emt 0:00:04]} 28. axb5 {[%emt
0:00:01]} Qxh4 {[%emt 0:00:05]} 29. bxc6 {[%emt 0:00:06]} bxc6 {[%emt 0:00:06]}
30. Be1 {[%emt 0:00:08]} Qg5 {[%emt 0:00:02]} 31. Qe3 {[%emt 0:00:04]} Qf6 {
[%emt 0:00:06]} 32. Ra7 {[%emt 0:00:05]} Nb6 {[%emt 0:00:03]} 33. Bd3 {[%emt 0:
00:11]} Rfd8 {[%emt 0:00:10]} 34. Rb3 {[%emt 0:00:04]} Nc4 {[%emt 0:00:04]} 35.
Qf2 {[%emt 0:00:07]} Nd6 {[%emt 0:00:04]} 36. Bb4 {[%emt 0:00:05]} Nc4 {[%emt
0:00:06]} 37. Bc5 {[%emt 0:00:05]} g5 {[%emt 0:00:04]} 38. Rbb7 {[%emt 0:00:01]
} Nd6 {[%emt 0:00:05]} 39. Qg3 {[%emt 0:00:06]} Ne8 {[%emt 0:00:04]} 40. Qe5 {
[%emt 0:00:07]} Qxe5 {[%emt 0:00:05]} 41. dxe5 {[%emt 0:00:01]} g4 {[%emt 0:00:
05]} 42. fxg4 {[%emt 0:00:01]} fxg4 {[%emt 0:00:02]} 43. Bh7+ {[%emt 0:00:03]}
Kh8 {[%emt 0:00:02]} 44. Bg6 {[%emt 0:00:03]} Rb8 {[%emt 0:00:15]} 45. Rh7+ {
[%emt 0:00:04]} Kg8 {[%emt 0:00:01]} 46. Bxe8 {[%emt 0:00:04]} 1-0

[Event "Championnat de France Universitaire Nan"]
[Site "Nancy, France"]
[Date "2020.02.09"]
[Round "7.8"]
[White "Ginovart, Axel"]
[Black "Roch, Florian"]
[Result "1-0"]
[WhiteElo "2164"]
[BlackElo "1959"]
[PlyCount "57"]
[EventDate "2020.??.??"]
[TimeControl "15+5"]
[WhiteClock "0:02:11"]
[BlackClock "0:00:09"]

1. e4 {[%emt 0:00:01]} c5 {[%emt 0:00:07]} 2. Nc3 {[%emt 0:00:02]} d6 {[%emt 0:
00:09]} 3. f4 {[%emt 0:00:13]} g6 {[%emt 0:00:13]} 4. Nf3 {[%emt 0:00:07]} Bg7
{[%emt 0:00:04]} 5. Bc4 {[%emt 0:00:14]} Nc6 {[%emt 0:00:15]} 6. O-O {[%emt 0:
00:33]} e6 {[%emt 0:00:07]} 7. f5 {[%emt 0:00:43]} exf5 {[%emt 0:00:15]} 8. d3
{[%emt 0:00:07]} Nge7 {[%emt 0:00:01]} 9. Qe1 {[%emt 0:01:41]} h6 {[%emt 0:00:
12]} 10. Qh4 {[%emt 0:02:45]} a6 {[%emt 0:03:11]} 11. Bd2 {[%emt 0:00:19]} Be6
{[%emt 0:00:30]} 12. Rae1 {[%emt 0:01:28]} Bxc4 {[%emt 0:01:52]} 13. exf5 {
[%emt 0:00:09]} Bxd3 {[%emt 0:01:26]} 14. f6 {[%emt 0:02:00]} Bxf1 {[%emt 0:01:
31]} 15. fxg7 {[%emt 0:00:01]} Rg8 {[%emt 0:00:01]} 16. Nd5 {[%emt 0:00:01]}
Kd7 {[%emt 0:01:25]} 17. Nf6+ {[%emt 0:01:41]} Kc7 {[%emt 0:00:34]} 18. Nxg8 {
[%emt 0:01:08]} Nxg8 {[%emt 0:00:08]} 19. Rxf1 {[%emt 0:00:10]} Qxh4 {[%emt 0:
00:26]} 20. Nxh4 {[%emt 0:00:00]} Ne5 {[%emt 0:00:58]} 21. Bc3 {[%emt 0:00:00]}
f6 {[%emt 0:01:01]} 22. Bxe5 {[%emt 0:00:22]} dxe5 {[%emt 0:00:00]} 23. Nxg6 {
[%emt 0:00:01]} Rd8 {[%emt 0:00:21]} 24. h4 {[%emt 0:01:05]} Rd7 {[%emt 0:00:
03]} 25. Nf8 {[%emt 0:00:03]} Rf7 {[%emt 0:00:44]} 26. Rd1 {[%emt 0:00:20]} Kc6
{[%emt 0:00:29]} 27. Ne6 {[%emt 0:00:00]} Re7 {[%emt 0:01:00]} 28. Rd8 {[%emt
0:00:01]} Rxe6 {[%emt 0:00:15]} 29. Rxg8 {[%emt 0:00:02]} 1-0